fUST/lending_fUST_20241028
["ID","MTS","AMOUNT","RATE_DAILY","PERIOD"]
[340913621,1730074244607,-500.0,0.00027945,30]
[340913622,1730074244618,-500.0,0.00027945,30]
[340913623,1730074244627,-500.0,0.00027945,30]
[340913624,1730074244637,-500.0,0.00027945,30]
[340913625,1730074244647,-500.0,0.00027945,30]
[340913626,1730074244657,-648.61,0.00027945,30]
[340913627,1730074244667,-500.0,0.00027945,30]
[340913628,1730074244677,-500.0,0.00027945,30]
[340913629,1730074244687,-500.0,0.00027945,20]
[340913630,1730074244697,-500.0,0.00027945,30]
[340913631,1730074244706,-695.1,0.00027945,30]
[340913632,1730074244716,-864.63,0.00027945,30]
[340913633,1730074244725,-1154.94,0.00027945,30]
[340913634,1730074244738,-1446.78,0.00027945,30]
[340913635,1730074244748,-596.77,0.00027945,30]
[340913636,1730074244759,-1258.05,0.00027945,30]
[340913637,1730074244769,-200.0,0.00027945,7]
[340913638,1730074244778,-547.47,0.00027945,30]
[340913639,1730074244788,-500.0,0.00027945,30]
[340913640,1730074244798,-500.0,0.00027945,30]
[340913641,1730074244808,-620.81,0.00027945,30]
[340913642,1730074244819,-722.53,0.00027945,30]
[340913643,1730074244829,-500.0,0.00027945,30]
[340913644,1730074244839,-500.0,0.00027945,30]
[340913645,1730074244848,-517.12,0.00027945,30]
[340913646,1730074244859,-500.0,0.00027945,30]
[340913647,1730074244869,-751.72,0.00027945,30]
[340913648,1730074244879,-607.22,0.00027945,30]
[340913649,1730074244889,-500.0,0.00027945,30]
[340913650,1730074244899,-500.0,0.00027945,30]
[340913651,1730074244909,-500.0,0.00027945,30]
[340913652,1730074244919,-500.0,0.00027945,30]
[340913653,1730074244929,-500.0,0.00027945,30]
[340913654,1730074244939,-521.92,0.00027945,30]
[340913655,1730074244949,-443.77892746,0.00027945,30]
[340913656,1730074244959,-769.41,0.00027945,30]
[340913657,1730074244969,-566.56,0.00027945,30]
[340913658,1730074244980,-500.0,0.00027945,30]
[340913659,1730074244990,-500.0,0.00027945,30]
[340913660,1730074245000,-691.8,0.00027945,30]
[340913661,1730074245010,-500.0,0.00027945,30]
[340913662,1730074245020,-500.0,0.00027945,30]
[340913663,1730074245030,-500.0,0.00027945,30]
[340913664,1730074245040,-500.0,0.00027945,30]
[340913665,1730074245050,-500.0,0.00027945,30]
[340913666,1730074245060,-500.0,0.00027945,30]
[340913667,1730074245071,-925.69,0.00027945,30]
[340913668,1730074245080,-500.0,0.00027945,30]
[340913669,1730074245090,-500.0,0.00027945,30]
[340913670,1730074245100,-975.57,0.00027945,30]
[340913671,1730074245111,-500.0,0.00027945,30]
[340913672,1730074245121,-500.0,0.00027945,30]
[340913673,1730074245132,-500.0,0.00027945,30]
[340913674,1730074245142,-500.0,0.00027945,30]
[340913675,1730074245152,-503.52,0.00027945,30]
[340913676,1730074245162,-500.0,0.00027945,30]
[340913677,1730074245172,-500.0,0.00027945,30]
[340913678,1730074245182,-500.0,0.00027945,30]
[340913679,1730074245193,-709.11,0.00027945,30]
[340913680,1730074245202,-535.49,0.00027945,30]
[340913681,1730074245211,-542.86,0.00027945,30]
[340913682,1730074245222,-500.0,0.00027945,30]
[340913683,1730074245234,-500.0,0.00027945,30]
[340913684,1730074245248,-222.49444747,0.00027945,30]
[340913685,1730074245258,-500.0,0.00027945,30]
[340913686,1730074245267,-835.15,0.00027945,7]
[340913687,1730074245279,-500.0,0.00027945,30]
[340913688,1730074245290,-500.0,0.00027945,30]
[340913689,1730074245301,-534.04366736,0.00027945,30]
[340913690,1730074245311,-500.0,0.00027945,30]
[340913691,1730074245321,-500.0,0.00027945,30]
[340913692,1730074245333,-500.0,0.00027945,30]
[340913693,1730074245343,-625.9,0.00027945,30]
[340913694,1730074245353,-896.65,0.00027945,30]
[340913695,1730074245362,-500.0,0.00027945,30]
[340913696,1730074245372,-500.0,0.00027945,30]
[340913697,1730074245382,-500.0,0.00027945,30]
[340913698,1730074245392,-500.0,0.00027945,30]
[340913699,1730074245402,-854.31,0.00027945,30]
[340913700,1730074245412,-500.0,0.00027945,30]
[340913701,1730074245422,-500.0,0.00027945,30]
[340913702,1730074245432,-839.76,0.00027945,30]
[340913703,1730074245442,-500.0,0.00027945,30]
[340913704,1730074245451,-500.0,0.00027945,30]
[340913705,1730074245462,-776.41,0.00027945,30]
[340913706,1730074245472,-644.68,0.00027945,30]
[340913707,1730074245483,-500.0,0.00027945,30]
[340913708,1730074245493,-500.0,0.00027945,30]
[340913709,1730074245503,-500.0,0.00027945,30]
[340913710,1730074245513,-500.0,0.00027945,30]
[340913711,1730074245526,-500.0,0.00027945,30]
[340913712,1730074245536,-3144.55,0.00027945,30]
[340913713,1730074245547,-874.58,0.00027945,30]
[340913714,1730074245557,-829.08,0.00027945,30]
[340913715,1730074245567,-500.0,0.00027945,30]
[340913716,1730074245577,-990.09,0.00027945,30]
[340913717,1730074245587,-592.18,0.00027945,30]
[340913718,1730074245598,-799.86,0.00027945,30]
[340913719,1730074245609,-573.0,0.00027945,30]
[340913720,1730074245619,-1053.98,0.00027945,30]
[340913721,1730074245629,-500.0,0.00027945,30]
[340913722,1730074245639,-887.2,0.00027945,30]
[340913724,1730074245649,-16192.89,0.00027945,30]
[340913725,1730074245659,-500.0,0.00027945,30]
[340913726,1730074245671,-500.0,0.00027945,30]
[340913728,1730074245681,-500.0,0.00027945,30]
[340913729,1730074245691,-500.0,0.00027945,30]
[340913730,1730074245701,-4387.63,0.00027945,21]
[340913731,1730074245712,-500.0,0.00027945,30]
[340913732,1730074245722,-500.0,0.00027945,30]
[340913733,1730074245734,-1657.24,0.00027945,30]
[340913734,1730074245744,-374.320406,0.00027945,7]
[340913735,1730074245755,-674.22,0.00027945,30]
[340913736,1730074245765,-500.0,0.00027945,30]
[340913737,1730074245776,-374.32041,0.00027945,7]
[340913738,1730074245786,-500.0,0.00027945,30]
[340913739,1730074245796,-500.0,0.00027945,30]
[340913741,1730074245806,-500.0,0.00027945,30]
[340913742,1730074245816,-933.03,0.00027945,30]
[340913743,1730074245827,-500.0,0.00027945,30]
[340913744,1730074245836,-826.35,0.00027945,30]
[340913745,1730074245846,-724.89,0.00027945,30]
[340913746,1730074245856,-500.0,0.00027945,30]
[340913747,1730074245866,-2823.63,0.00027945,30]
[340913748,1730074245876,-500.0,0.00027945,30]
[340913749,1730074245886,-6180.55,0.00027945,30]
[340913750,1730074245896,-735.15,0.00027945,30]
[340913751,1730074245906,-1855.3,0.00027945,30]
[340913752,1730074245916,-500.0,0.00027945,30]
[340913753,1730074245926,-1334.81,0.00027945,30]
[340913754,1730074245937,-500.0,0.00027945,30]
[340913755,1730074245947,-1109.76,0.00027945,30]
[340913756,1730074245956,-663.98,0.00027945,30]
[340913758,1730074245965,-3050.8,0.00027945,30]
[340913759,1730074245975,-1009.46,0.00027945,30]
[340913760,1730074245986,-500.0,0.00027945,30]
[340913761,1730074245995,-568.24,0.00027945,30]
[340913762,1730074246005,-806.39,0.00027945,30]
[340913763,1730074246016,-500.0,0.00027945,30]
[340913764,1730074246026,-1507.59,0.00027945,30]
[340913765,1730074246036,-1592.81,0.00027945,30]
[340913766,1730074246046,-637.59,0.00027945,30]
[340913767,1730074246056,-1511.23,0.00027945,30]
[340913768,1730074246067,-500.0,0.00027945,30]
[340913769,1730074246078,-549.76,0.00027945,30]
[340913770,1730074246088,-1179.95,0.00027945,30]
[340913771,1730074246099,-500.0,0.00027945,30]
[340913772,1730074246110,-1250.12,0.00027945,30]
[340913774,1730074246120,-1285.43,0.00027945,30]
[340913775,1730074246130,-500.0,0.00027945,30]
[340913776,1730074246139,-500.0,0.00027945,30]
[340913777,1730074246149,-1657.96,0.00027945,30]
[340913778,1730074246159,-500.0,0.00027945,30]
[340913779,1730074246169,-796.13,0.00027945,30]
[340913780,1730074246179,-745.09,0.00027945,30]
[340913781,1730074246189,-500.0,0.00027945,30]
[340913782,1730074246199,-665.73,0.00027945,30]
[340913783,1730074246209,-702.84,0.00027945,30]
[340913784,1730074246219,-924.8,0.00027945,30]
[340913785,1730074246230,-1254.26,0.00027945,30]
[340913786,1730074246243,-500.0,0.00027945,30]
[340913787,1730074246252,-500.0,0.00027945,30]
[340913788,1730074246262,-500.0,0.00027945,30]
[340913789,1730074246272,-500.0,0.00027945,30]
[340913790,1730074246282,-500.0,0.00027945,30]
[340913791,1730074246292,-500.0,0.00027945,30]
[340913792,1730074246302,-500.0,0.00027945,30]
[340913793,1730074246312,-605.19,0.00027945,30]
[340913794,1730074246322,-284.795495,0.00027945,7]
[340913795,1730074246333,-284.795495,0.00027945,7]
[340913796,1730074246343,-500.0,0.00027973,5]
[340913797,1730074246353,-156.0,0.00028,2]
[340913798,1730074246363,-164.564064,0.0002804,2]
[340913799,1730074246374,-913.610971,0.0002804,2]
[340913800,1730074246384,-151.0,0.0002804,3]
[340913801,1730074246394,-500.0,0.00028219,7]
[340913802,1730074246404,-151.0,0.00028219,7]
[340913803,1730074246414,-500.0,0.00028219,7]
[340913804,1730074246423,-500.0,0.00028219,7]
[340913805,1730074246432,-500.0,0.00028219,30]
[340913806,1730074246442,-500.0,0.00028219,30]
[340913807,1730074246453,-500.0,0.00028219,30]
[340913808,1730074246463,-500.0,0.00028219,30]
[340913809,1730074246473,-1051.44,0.00028219,30]
[340913810,1730074246484,-500.0,0.00028219,30]
[340913811,1730074246494,-741.84,0.00028219,30]
[340913812,1730074246503,-500.0,0.00028219,30]
[340913813,1730074246513,-500.0,0.00028219,30]
[340913814,1730074246522,-500.0,0.00028219,30]
[340913815,1730074246532,-500.0,0.00028219,14]
[340913816,1730074246541,-500.0,0.00028219,30]
[340913817,1730074246551,-500.0,0.00028219,30]
[340913818,1730074246560,-500.0,0.00028219,30]
[340913819,1730074246570,-500.0,0.00028219,30]
[340913820,1730074246579,-500.0,0.00028219,30]
[340913821,1730074246589,-648.61,0.00028219,30]
[340913822,1730074246598,-500.0,0.00028219,30]
[340913823,1730074246608,-500.0,0.00028219,30]
[340913824,1730074246618,-500.0,0.00028219,20]
[340913825,1730074246627,-500.0,0.00028219,30]
[340913826,1730074246636,-695.1,0.00028219,30]
[340913827,1730074246647,-864.63,0.00028219,30]
[340913828,1730074246656,-1154.94,0.00028219,30]
[340913829,1730074246666,-1446.78,0.00028219,30]
[340913830,1730074246675,-596.77,0.00028219,30]
[340913831,1730074246685,-1258.05,0.00028219,30]
[340913832,1730074246694,-200.0,0.00028219,7]
[340913833,1730074246704,-547.47,0.00028219,30]
[340913834,1730074246714,-500.0,0.00028219,30]
[340913835,1730074246758,-500.0,0.00028219,30]
[340913836,1730074246767,-620.81,0.00028219,30]
[340913837,1730074246776,-722.53,0.00028219,30]
[340913838,1730074246786,-500.0,0.00028219,30]
[340913839,1730074246796,-500.0,0.00028219,30]
[340913840,1730074246805,-517.12,0.00028219,30]
[340913841,1730074246815,-500.0,0.00028219,30]
[340913842,1730074246825,-751.72,0.00028219,30]
[340913843,1730074246835,-607.22,0.00028219,30]
[340913844,1730074246845,-500.0,0.00028219,30]
[340913845,1730074246855,-500.0,0.00028219,30]
[340913846,1730074246864,-500.0,0.00028219,30]
[340913847,1730074246875,-500.0,0.00028219,30]
[340913848,1730074246884,-500.0,0.00028219,30]
[340913849,1730074246893,-521.92,0.00028219,30]
[340913850,1730074246902,-769.41,0.00028219,30]
[340913851,1730074246911,-566.56,0.00028219,30]
[340913852,1730074246921,-500.0,0.00028219,30]
[340913853,1730074246931,-500.0,0.00028219,30]
[340913854,1730074246940,-691.8,0.00028219,30]
[340913855,1730074246951,-500.0,0.00028219,30]
[340913856,1730074246960,-500.0,0.00028219,30]
[340913857,1730074246969,-500.0,0.00028219,30]
[340913858,1730074246979,-500.0,0.00028219,30]
[340913859,1730074246989,-500.0,0.00028219,30]
[340913860,1730074246998,-500.0,0.00028219,30]
[340913861,1730074247007,-925.69,0.00028219,30]
[340913862,1730074247016,-500.0,0.00028219,30]
[340913863,1730074247026,-500.0,0.00028219,30]
[340913864,1730074247035,-975.57,0.00028219,30]
[340913865,1730074247044,-500.0,0.00028219,30]
[340913866,1730074247053,-191.46810726,0.00028219,30]
[340913867,1730074247063,-500.0,0.00028219,30]
[340913868,1730074247073,-500.0,0.00028219,30]
[340913869,1730074247082,-503.52,0.00028219,30]
[340913870,1730074247092,-500.0,0.00028219,30]
[340913871,1730074247102,-402.66961533,0.00028219,30]
[340913872,1730074247112,-500.0,0.00028219,30]
[340913873,1730074247122,-709.11,0.00028219,30]
[340913874,1730074247131,-535.49,0.00028219,30]
[340913875,1730074247140,-542.86,0.00028219,30]
[340913876,1730074247150,-500.0,0.00028219,30]
[340913877,1730074247159,-500.0,0.00028219,30]
[340913878,1730074247169,-500.0,0.00028219,30]
[340913879,1730074247178,-835.15,0.00028219,7]
[340913880,1730074247187,-500.0,0.00028219,30]
[340913881,1730074247197,-500.0,0.00028219,30]
[340913882,1730074247207,-500.0,0.00028219,30]
[340913883,1730074247217,-500.0,0.00028219,30]
[340913884,1730074247226,-500.0,0.00028219,30]
[340913885,1730074247237,-625.9,0.00028219,30]
[340913886,1730074247252,-896.65,0.00028219,30]
[340913887,1730074247262,-500.0,0.00028219,30]
[340913888,1730074247271,-500.0,0.00028219,30]
[340913889,1730074247280,-500.0,0.00028219,30]
[340913890,1730074247289,-500.0,0.00028219,30]
[340913891,1730074247299,-854.31,0.00028219,30]
[340913892,1730074247309,-500.0,0.00028219,30]
[340913893,1730074247319,-500.0,0.00028219,30]
[340913894,1730074247329,-839.76,0.00028219,30]
[340913895,1730074247338,-500.0,0.00028219,30]
[340913896,1730074247348,-500.0,0.00028219,30]
[340913897,1730074247357,-776.41,0.00028219,30]
[340913898,1730074247370,-644.68,0.00028219,30]
[340913899,1730074247379,-500.0,0.00028219,30]
[340913900,1730074247389,-500.0,0.00028219,30]
[340913901,1730074247399,-500.0,0.00028219,30]
[340913902,1730074247408,-500.0,0.00028219,30]
[340913903,1730074247418,-500.0,0.00028219,30]
[340913904,1730074247427,-3144.55,0.00028219,30]
[340913905,1730074247437,-874.58,0.00028219,30]
[340913906,1730074247447,-829.08,0.00028219,30]
[340913907,1730074247456,-500.0,0.00028219,30]
[340913908,1730074247466,-990.09,0.00028219,30]
[340913909,1730074247475,-592.18,0.00028219,30]
[340913910,1730074247491,-799.86,0.00028219,30]
[340913911,1730074247500,-573.0,0.00028219,30]
[340913912,1730074247509,-1053.98,0.00028219,30]
[340913913,1730074247518,-500.0,0.00028219,30]
[340913914,1730074247527,-887.2,0.00028219,30]
[340913915,1730074247536,-16192.89,0.00028219,30]
[340913916,1730074247548,-500.0,0.00028219,30]
[340913917,1730074247558,-500.0,0.00028219,30]
[340913918,1730074247567,-500.0,0.00028219,30]
[340913919,1730074247575,-500.0,0.00028219,30]
[340913920,1730074247584,-4387.63,0.00028219,21]
[340913921,1730074247594,-500.0,0.00028219,30]
[340913922,1730074247602,-500.0,0.00028219,30]
[340913923,1730074247612,-1657.24,0.00028219,30]
[340913924,1730074247622,-674.22,0.00028219,30]
[340913925,1730074247633,-500.0,0.00028219,30]
[340913926,1730074247643,-500.0,0.00028219,30]
[340913927,1730074247652,-500.0,0.00028219,30]
[340913928,1730074247661,-500.0,0.00028219,30]
[340913929,1730074247671,-933.03,0.00028219,30]
[340913930,1730074247681,-500.0,0.00028219,30]
[340913931,1730074247690,-724.89,0.00028219,30]
[340913932,1730074247700,-500.0,0.00028219,30]
[340913933,1730074247710,-2823.63,0.00028219,30]
[340913934,1730074247720,-500.0,0.00028219,30]
[340913935,1730074247730,-6180.55,0.00028219,30]
[340913936,1730074247739,-735.15,0.00028219,30]
[340913937,1730074247748,-1855.3,0.00028219,30]
[340913938,1730074247757,-500.0,0.00028219,30]
[340913939,1730074247767,-1334.81,0.00028219,30]
[340913940,1730074247776,-500.0,0.00028219,30]
[340913941,1730074247785,-1109.76,0.00028219,30]
[340913942,1730074247794,-663.98,0.00028219,30]
[340913943,1730074247804,-3050.8,0.00028219,30]
[340913944,1730074247813,-1009.46,0.00028219,30]
[340913945,1730074247824,-500.0,0.00028219,30]
[340913946,1730074247834,-568.24,0.00028219,30]
[340913947,1730074247844,-806.39,0.00028219,30]
[340913948,1730074247855,-500.0,0.00028219,30]
[340913949,1730074247866,-1507.59,0.00028219,30]
[340913950,1730074247877,-1592.81,0.00028219,30]
[340913951,1730074247886,-637.59,0.00028219,30]
[340913952,1730074247896,-1511.23,0.00028219,30]
[340913953,1730074247905,-500.0,0.00028219,30]
[340913954,1730074247914,-549.76,0.00028219,30]
[340913955,1730074247924,-1179.95,0.00028219,30]
[340913956,1730074247933,-500.0,0.00028219,30]
[340913957,1730074247942,-1250.12,0.00028219,30]
[340913958,1730074247951,-1285.43,0.00028219,30]
[340913959,1730074247961,-500.0,0.00028219,30]
[340913960,1730074247970,-500.0,0.00028219,30]
[340913961,1730074247979,-1657.96,0.00028219,30]
[340913962,1730074247988,-500.0,0.00028219,30]
[340913963,1730074247998,-796.13,0.00028219,30]
[340913964,1730074248007,-745.09,0.00028219,30]
[340913965,1730074248017,-500.0,0.00028219,30]
[340913966,1730074248026,-665.73,0.00028219,30]
[340913967,1730074248036,-702.84,0.00028219,30]
[340913968,1730074248046,-924.8,0.00028219,30]
[340913969,1730074248055,-1254.26,0.00028219,30]
[340913970,1730074248065,-500.0,0.00028219,30]
[340913971,1730074248075,-500.0,0.00028219,30]
[340913972,1730074248084,-500.0,0.00028219,30]
[340913973,1730074248093,-500.0,0.00028219,30]
[340913974,1730074248103,-500.0,0.00028219,30]
[340913975,1730074248113,-500.0,0.00028219,30]
[340913976,1730074248122,-612.54512685,0.00028219,30]
[340913977,1730074248132,-605.19,0.00028219,30]
[340913978,1730074248141,-284.795495,0.00028219,7]
[340913979,1730074248150,-350.0,0.000283,14]
[340913980,1730074248160,-855.49985441,0.00028346,5]
[340913981,1730074248170,-1500.0,0.00028346,2]
[340913982,1730074248179,-1500.0,0.00028346,5]
[340913983,1730074248188,-533.15197627,0.00028346,5]
[340913984,1730074248198,-164.564064,0.00028386,2]
[340913985,1730074248207,-913.610971,0.00028386,2]
[340913986,1730074248219,-500.0,0.00028493,30]
[340913987,1730074248229,-500.0,0.00028493,30]
[340913988,1730074248241,-457.33011818,0.00028493,30]
[340913989,1730074248251,-500.0,0.00028493,30]
[340913990,1730074248262,-500.0,0.00028493,30]
[340913991,1730074248271,-1051.44,0.00028493,30]
[340913992,1730074248282,-500.0,0.00028493,30]
[340913993,1730074248291,-741.84,0.00028493,30]
[340913994,1730074248301,-500.0,0.00028493,30]
[340913995,1730074248311,-500.0,0.00028493,30]
[340913996,1730074248323,-500.0,0.00028493,30]
[340913997,1730074248334,-500.0,0.00028493,14]
[340913998,1730074248344,-500.0,0.00028493,30]
[340913999,1730074248353,-500.0,0.00028493,30]
[340914000,1730074248363,-500.0,0.00028493,30]
[340914001,1730074248373,-500.0,0.00028493,30]
[340914002,1730074248382,-500.0,0.00028493,30]
[340914003,1730074248391,-648.61,0.00028493,30]
[340914004,1730074248401,-500.0,0.00028493,30]
[340914005,1730074248410,-500.0,0.00028493,30]
[340914006,1730074248420,-269.32135743,0.00028493,20]
[340914007,1730074248430,-500.0,0.00028493,30]
[340914008,1730074248440,-695.1,0.00028493,30]
[340914009,1730074248449,-864.63,0.00028493,30]
[340914010,1730074248459,-1446.78,0.00028493,30]
[340914011,1730074248468,-1154.94,0.00028493,30]
[340914012,1730074248477,-596.77,0.00028493,30]
[340914013,1730074248489,-1258.05,0.00028493,30]
[340914014,1730074248499,-200.0,0.00028493,7]
[340914015,1730074248509,-547.47,0.00028493,30]
[340914016,1730074248519,-500.0,0.00028493,30]
[340914017,1730074248528,-500.0,0.00028493,30]
[340914018,1730074248539,-620.81,0.00028493,30]
[340914019,1730074248550,-722.53,0.00028493,30]
[340914020,1730074248560,-500.0,0.00028493,30]
[340914021,1730074248570,-500.0,0.00028493,30]
[340914022,1730074248580,-517.12,0.00028493,30]
[340914023,1730074248589,-500.0,0.00028493,30]
[340914024,1730074248599,-751.72,0.00028493,30]
[340914025,1730074248609,-607.22,0.00028493,30]
[340914026,1730074248619,-500.0,0.00028493,30]
[340914027,1730074248628,-500.0,0.00028493,30]
[340914028,1730074248638,-500.0,0.00028493,30]
[340914029,1730074248648,-500.0,0.00028493,30]
[340914030,1730074248657,-500.0,0.00028493,30]
[340914031,1730074248667,-521.92,0.00028493,30]
[340914032,1730074248677,-769.41,0.00028493,30]
[340914033,1730074248687,-566.56,0.00028493,30]
[340914034,1730074248697,-500.0,0.00028493,30]
[340914035,1730074248706,-500.0,0.00028493,30]
[340914036,1730074248715,-691.8,0.00028493,30]
[340914037,1730074248725,-500.0,0.00028493,30]
[340914038,1730074248736,-500.0,0.00028493,30]
[340914039,1730074248747,-500.0,0.00028493,30]
[340914040,1730074248757,-500.0,0.00028493,30]
[340914041,1730074248767,-500.0,0.00028493,30]
[340914042,1730074248778,-500.0,0.00028493,30]
[340914043,1730074248788,-925.69,0.00028493,30]
[340914044,1730074248798,-500.0,0.00028493,30]
[340914045,1730074248807,-500.0,0.00028493,30]
[340914046,1730074248817,-975.57,0.00028493,30]
[340914047,1730074248827,-500.0,0.00028493,30]
[340914048,1730074248836,-500.0,0.00028493,30]
[340914049,1730074248847,-500.0,0.00028493,30]
[340914050,1730074248856,-503.52,0.00028493,30]
[340914051,1730074248866,-500.0,0.00028493,30]
[340914052,1730074248876,-500.0,0.00028493,30]
[340914053,1730074248886,-709.11,0.00028493,30]
[340914054,1730074248896,-535.49,0.00028493,30]
[340914055,1730074248906,-500.0,0.00028493,30]
[340914056,1730074248916,-542.86,0.00028493,30]
[340914057,1730074248926,-500.0,0.00028493,30]
[340914058,1730074248936,-500.0,0.00028493,30]
[340914059,1730074248946,-835.15,0.00028493,7]
[340914060,1730074248956,-500.0,0.00028493,30]
[340914061,1730074248966,-500.0,0.00028493,30]
[340914062,1730074248976,-500.0,0.00028493,30]
[340914063,1730074248988,-500.0,0.00028493,30]
[340914064,1730074248998,-500.0,0.00028493,30]
[340914065,1730074249008,-625.9,0.00028493,30]
[340914066,1730074249018,-896.65,0.00028493,30]
[340914067,1730074249027,-500.0,0.00028493,30]
[340914068,1730074249037,-500.0,0.00028493,30]
[340914069,1730074249047,-500.0,0.00028493,30]
[340914070,1730074249057,-500.0,0.00028493,30]
[340914071,1730074249067,-854.31,0.00028493,30]
[340914072,1730074249077,-500.0,0.00028493,30]
[340914073,1730074249086,-500.0,0.00028493,30]
[340914074,1730074249096,-500.0,0.00028493,30]
[340914075,1730074249105,-839.76,0.00028493,30]
[340914076,1730074249115,-500.0,0.00028493,30]
[340914077,1730074249124,-776.41,0.00028493,30]
[340914078,1730074249134,-644.68,0.00028493,30]
[340914079,1730074249144,-500.0,0.00028493,30]
[340914080,1730074249153,-500.0,0.00028493,30]
[340914081,1730074249163,-500.0,0.00028493,30]
[340914082,1730074249173,-500.0,0.00028493,30]
[340914083,1730074249183,-500.0,0.00028493,30]
[340914084,1730074249192,-3144.55,0.00028493,30]
[340914085,1730074249202,-874.58,0.00028493,30]
[340914086,1730074249212,-829.08,0.00028493,30]
[340914087,1730074249222,-351.22356846,0.00028493,30]
[340914088,1730074249233,-990.09,0.00028493,30]
[340914089,1730074249246,-592.18,0.00028493,30]
[340914090,1730074249256,-799.86,0.00028493,30]
[340914091,1730074249267,-573.0,0.00028493,30]
[340914092,1730074249277,-1053.98,0.00028493,30]
[340914093,1730074249287,-500.0,0.00028493,30]
[340914094,1730074249298,-887.2,0.00028493,30]
[340914095,1730074249308,-16192.89,0.00028493,30]
[340914096,1730074249318,-500.0,0.00028493,30]
[340914097,1730074249327,-500.0,0.00028493,30]
[340914098,1730074249337,-500.0,0.00028493,30]
[340914099,1730074249347,-500.0,0.00028493,30]
[340914100,1730074249357,-4387.63,0.00028493,21]
[340914101,1730074249367,-500.0,0.00028493,30]
[340914102,1730074249377,-500.0,0.00028493,30]
[340914103,1730074249387,-1657.24,0.00028493,30]
[340914104,1730074249397,-674.22,0.00028493,30]
[340914105,1730074249407,-500.0,0.00028493,30]
[340914106,1730074249417,-500.0,0.00028493,30]
[340914107,1730074249427,-500.0,0.00028493,30]
[340914108,1730074249437,-500.0,0.00028493,30]
[340914109,1730074249447,-933.03,0.00028493,30]
[340914110,1730074249458,-500.0,0.00028493,30]
[340914111,1730074249468,-724.89,0.00028493,30]
[340914112,1730074249478,-500.0,0.00028493,30]
[340914113,1730074249487,-2823.63,0.00028493,30]
[340914114,1730074249498,-500.0,0.00028493,30]
[340914115,1730074249507,-6180.55,0.00028493,30]
[340914116,1730074249517,-735.15,0.00028493,30]
[340914117,1730074249527,-500.0,0.00028493,30]
[340914118,1730074249537,-1855.3,0.00028493,30]
[340914119,1730074249546,-1334.81,0.00028493,30]
[340914120,1730074249556,-500.0,0.00028493,30]
[340914121,1730074249566,-1109.76,0.00028493,30]
[340914122,1730074249575,-663.98,0.00028493,30]
[340914123,1730074249585,-3050.8,0.00028493,30]
[340914124,1730074249595,-1009.46,0.00028493,30]
[340914125,1730074249605,-500.0,0.00028493,30]